Cogmind - Beta 14 @@@ ROGUE MODE // 2024.08.21 @ 17:35:37 Player: Dadrick Result: Destroyed by S-27 Virus with Autogun Performance ------------- Evolutions (3) 1500 Regions Visited (5) 1000 Robots Destroyed (181) 905 Value Destroyed (5105) 5105 Prototype IDs (6) 120 Alien Tech Used (0) 0 Bonus (974) 974 TOTAL SCORE: 9604 Bonus ------- High Alert Combat Kills 974 Cogmind --------- Core Integrity 0/700 Matter 145/300 Energy 99/100 System Corruption 17% Temperature Cool (0) Movement Core (50) Location -7/Factory Parts ------- > --- POWER (1) -------- (None) > --- PROPULSION (4) --- (None) > --- UTILITY (5) ------ (None) > --- WEAPON (3) ------- (None) > --- INVENTORY (5) ---- Heavy Deuterium Engine Advanced Drone Bay (2/2) Improved Datajack Spear Peak State ------------ > --- POWER ------------ Micro Nuclear Core > --- PROPULSION ------- Medium Treads Medium Treads Armored Huge Wheel > --- UTILITY ---------- Improved Heat Sink Medium Storage Unit Advanced Targeting Computer Improved Medium Armor Plating Hacking Suite > --- WEAPON ----------- Cooled Particle Cannon Cooled Particle Cannon Gauss Cannon > --- INVENTORY -------- Heavy Deuterium Engine Armored Huge Wheel Terrain Scanner Improved Terrain Scan Processor Advanced Drone Bay Heavy Rocket Launcher Improved Datajack Spear [Rating: 52] Favorites ----------- Power Deuterium Engine Engine Deuterium Engine Power Core Nuclear Core Propulsion Improved Treads Treads Improved Treads Wheel Wheel Utility Large Storage Unit Device Structural Scanner Storage Large Storage Unit Processor Advanced Targeting Computer Hackware Hacking Suite Protection Hardened Light Armor Plating Weapon Light Assault Rifle Energy Gun Improved Medium Laser Energy Cannon Advanced Beam Cannon Ballistic Gun Light Assault Rifle Ballistic Cannon Advanced Assault Cannon Launcher Mini Grenade Launcher Special Weapon Mining Laser Build | -11 -10 -9 -9 -8 -7 ------- Run | Yrd Mat Mat Min Mat Fac Slots Evolved 6 | . . 2 . 2 2 Power . | . . . . . . Propulsion 2 | . . 1 . 1 . Utility 3 | . . 1 . 1 1 Weapon 1 | . . . . . 1 Parts Attached 173 | 7 9 22 20 48 67 Power 13 | 1 1 2 . 4 5 Engine 9 | 1 1 2 . 3 2 Core 4 | . . . . 1 3 Reactor . | . . . . . . Propulsion 33 | 2 2 7 1 10 11 Treads 24 | 1 1 5 1 9 7 Leg . | . . . . . . Wheel 9 | 1 1 2 . 1 4 Hover . | . . . . . . Flight . | . . . . . . Utility 63 | 2 3 5 9 18 26 Device 34 | 1 2 2 6 9 14 Storage 5 | 1 1 . . 1 2 Processor 6 | . . 3 . 2 1 Hackware 3 | . . . . . 3 Protection 15 | . . . 3 6 6 Artifact . | . . . . . . Weapon 64 | 2 3 8 10 16 25 Energy Gun 6 | . . . . 5 1 Energy Cannon 4 | . . . . . 4 Ballistic Gun 17 | 2 1 4 5 5 . Ballistic Cannon 13 | . . 2 . . 11 Launcher 19 | . . 2 4 5 8 Special Weapon 5 | . 2 . 1 1 1 Impact Weapon . | . . . . . . Slashing Weapon . | . . . . . . Piercing Weapon . | . . . . . . Special Melee Weapon . | . . . . . . Unidentified Prototypes 2 | . . . . . 2 Parts Lost 38 | . 3 4 2 13 16 Power 4 | . 1 . . 3 . Propulsion 13 | . 1 1 1 4 6 Utility 11 | . 1 2 . 3 5 Weapon 10 | . . 1 1 3 5 Highest Loss Streak 7 | . 1 1 1 7 6 To Critical Strikes 1 | . . . . . 1 Average Slot Usage (%) 93 | . 98 96 99 94 81 Engine 7 | . 13 11 11 7 1 Core 1 | . . . . 1 5 Treads 19 | . 18 22 21 23 12 Wheel 9 | . 9 10 11 9 8 Device 12 | . 12 10 17 19 5 Storage 9 | . 14 11 11 8 6 Processor 4 | . . 8 . 4 8 Hackware 1 | . . . . . 4 Protection 3 | . . . 4 1 7 Energy Gun 2 | . . . . 10 2 Energy Cannon 2 | . . . . . 7 Ballistic Gun 12 | . 27 15 21 6 . Ballistic Cannon 2 | . . 6 . . 6 Peak Build Rating 52 | 7 9 19 19 29 52 Average Rating 22 | 5 7 16 15 22 39 On Entrance 8 | . 7 8 18 16 4 Naked Turns 76 | . . . . . 76 Heaviest Build 125 | 14 29 38 39 97 125 Greatest Support 89 | 20 20 46 20 89 48 Greatest Overweight (x) 4 | . 2 3 3 3 4 Average Overweight (x) 1 | . 1 2 2 1 . Largest Inventory Capacity 25 | 8 15 15 15 25 25 Average Capacity 13 | 7 13 15 15 17 10 Most Carried 18 | 6 14 15 15 18 10 Average Carried 12 | 3 10 14 14 14 9 Final Capacity 15 | 8 15 15 15 5 5 Final Carried 15 | 6 14 15 15 5 5 Class Distribution -------------------- 44% | Scavenger-Mutant 26% | Mutant 13% | Gunner 7% | Scavenger-Skirmisher 4% | Skirmisher Dominant Class ---------------- Mutant | -10/Materials Mutant | -9/Materials Scavenger-Mutant | -9/Mines Scavenger-Skirmisher | -8/Materials Gunner | -7/Factory Resources | -11 -10 -9 -9 -8 -7 ----------- Run | Yrd Mat Mat Min Mat Fac Matter Collected 3884 | 269 284 762 423 590 1556 Remotely . | . . . . . . Salvage Created 5708 | 94 561 1077 421 968 2587 Parts 315 | 9 34 55 51 54 112 Haulers Intercepted 7 | . . 2 . 3 2 Recyclers Shooed 6 | . 1 . . 3 2 Parts Field Recycled . | . . . . . . Retrieved Matter . | . . . . . . Parts Self-Destructed . | . . . . . . Prevented . | . . . . . . Kills | -11 -10 -9 -9 -8 -7 ------- Run | Yrd Mat Mat Min Mat Fac Combat Hostiles Destroyed 136 | . 13 28 18 21 56 Guns 48 | . 13 9 10 12 4 Cannons 45 | . . 14 . 1 30 AOE 43 | . . 5 8 8 22 Classes Destroyed 16 | 2 3 6 . 4 1 Worker 6 | . . . . 1 5 Builder 10 | . . 1 2 1 6 Tunneler 8 | 2 . 1 4 . 1 Hauler 7 | . . 2 . 3 2 Recycler 13 | 1 1 1 . 2 8 Mechanic 3 | . . 1 . . 2 Operator 2 | . . 2 . . . Watcher 6 | . 2 1 . 1 2 Swarmer 31 | . 4 6 13 5 3 Cutter 4 | . . . . 4 . Grunt 66 | . 9 15 5 4 33 Brawler 6 | . . 2 . . 4 Duelist 3 | . . . . 1 2 Sentry 16 | . . 5 . 5 6 Hunter 4 | . . . . 2 2 Programmer 6 | . . . . . 6 Best Kill Streak 21 | 3 3 5 4 6 21 Combat Bots Only 11 | . 3 5 4 4 11 Max Kills in Single Turn 5 | 1 1 3 2 3 5 Gunslinging . | . . . . . . Exploded 3 | . . 2 2 3 3 Melee . | . . . . . . Uniques/NPCs Destroyed . | . . . . . . Combat | -11 -10 -9 -9 -8 -7 -------- Run | Yrd Mat Mat Min Mat Fac Hostile Shots Fired 864 | . 67 115 70 136 476 Missed 291 | . 22 38 23 33 175 Damage Taken 7996 | . 448 907 472 2044 4125 Core 1530 | . 66 193 52 508 711 Absorbed by Shields . | . . . . . . Core Remaining (%) 54 | 100 73 . 38 7 . Volleys Fired 450 | 7 49 93 66 84 151 Largest 3 | 2 2 2 2 2 3 Hottest 196 | 40 100 62 120 119 196 Shots Fired 875 | 14 96 180 113 153 319 Gun 481 | 14 94 106 93 140 34 Cannon 324 | . . 68 . . 256 Launcher 51 | . . 6 11 8 26 Special 19 | . 2 . 9 5 3 Kinetic 557 | 14 94 174 93 61 121 Thermal 267 | . 2 . 9 84 172 Explosive 51 | . . 6 11 8 26 Electromagnetic . | . . . . . . Robot Hit Streak 32 | 4 13 9 10 17 32 Robot Miss Streak 4 | 1 4 4 4 4 3 Penetration Max 1 | . . . . . 1 Secondary Targets 2 | . 1 . . 1 . Max Gunslinging Chain 1 | . 1 . . 1 . Shots Hit Robots 529 | 9 63 105 57 90 205 Core Hits 339 | 5 32 56 33 50 163 Critical Kills 2 | . . 2 . . . Critical Parts Destroyed 2 | . . . 1 1 . Critical Strikes 18 | . . 4 1 7 6 Burn 6 | . . . . 6 . Destroy 4 | . . 2 1 1 . Blast 8 | . . 2 . . 6 Melee Attacks . | . . . . . . Impact . | . . . . . . Slashing . | . . . . . . Piercing . | . . . . . . Sneak Attacks . | . . . . . . Combat Hostiles . | . . . . . . Follow-up Attacks . | . . . . . . Damage Inflicted 16087 | 105 685 2445 1086 1842 9924 Guns 4041 | 105 685 718 502 1246 785 Cannons 5145 | . . 861 . . 4284 Explosions 6821 | . . 866 584 532 4839 Melee . | . . . . . . Ramming 30 | . . . . 14 16 Kinetic 5274 | 105 685 1579 502 316 2087 Thermal 4638 | . . 317 . 980 3341 Explosive 6145 | . . 549 584 532 4480 Electromagnetic . | . . . . . . Impact . | . . . . . . Slashing . | . . . . . . Piercing . | . . . . . . Highest Corruption 17 | . . . . . 17 Average Corruption 5 | . . . . . 5 Corruption Purged 5 | . . . . . 5 Corruption Blocked . | . . . . . . Effects 22 | . . . . . 22 Message Errors 6 | . . . . . 6 Matter Fused 7 | . . . . . 7 Energy Discharges 1 | . . . . . 1 Data Loss (minor) 2 | . . . . . 2 Misfires 3 | . . . . . 3 Alerts 1 | . . . . . 1 Misdirections 1 | . . . . . 1 Weapon Failures 1 | . . . . . 1 Overload Shots . | . . . . . . Overflow Damage 386 | . . 27 . 4 355 Projectiles 103 | . . 3 . . 100 Explosions 283 | . . 24 . 4 255 Melee . | . . . . . . Knockbacks 30 | . . 8 . . 22 Impact . | . . . . . . Kinetic 29 | . . 8 . . 21 Secondary 1 | . . . . . 1 Self-Inflicted Damage 275 | . . 69 . 88 118 Shots 8 | . . 2 . 3 3 Rammed 3 | . . . . 1 2 Targets Rammed 3 | . . . . 1 2 Kicked . | . . . . . . Crushed . | . . . . . . Highest Temperature 366 | . 20 52 127 190 366 Average Temperature 64 | . 9 13 36 60 93 Received Heat Transfer 2214 | . 186 366 189 279 1194 Effects 6 | . . . . . 6 Energy Bleed 2 | . . . . . 2 Interference 4 | . . . . . 4 Siege Activations . | . . . . . . Robots Corrupted . | . . . . . . Combat Hostiles . | . . . . . . Parts Fried . | . . . . . . Impact Corruptions . | . . . . . . Robots Melted . | . . . . . . Combat Hostiles . | . . . . . . Parts Melted 9 | . . . . 6 3 Heat Transferred 7939 | . . 150 . 2579 5210 Parts Sabotaged . | . . . . . . Parts Stolen . | . . . . . . Parts Stripped . | . . . . . . Power Chain Reactions . | . . . . . . Alert | -11 -10 -9 -9 -8 -7 ------- Run | Yrd Mat Mat Min Mat Fac Peak Influence 1439 | 15 228 724 374 320 1439 Initial 219 | . 9 35 219 18 105 Average 244 | 4 116 404 119 140 411 Maximum Alert Level 4 | . 1 3 1 1 4 Low Security (%) 60 | 100 79 20 74 75 50 Level 1 23 | . 20 27 25 24 21 Level 2 9 | . . 47 . . 7 Level 3 1 | . . 4 . . 3 Level 4 4 | . . . . . 18 Level 5 . | . . . . . . High Security . | . . . . . . Max Security . | . . . . . . Squads Dispatched 35 | . 2 4 . 3 26 Investigation 9 | . 1 2 . 1 5 Extermination 7 | . . . . . 7 Reinforcement 12 | . 1 2 . 2 7 Assault 4 | . . . . . 4 Garrison 3 | . . . . . 3 Intercept . | . . . . . . Searches Triggered . | . . . . . . Construction Impeded 4 | . . . . . 4 Haulers Reinforced 1 | . . . . . 1 Active Scanning Responses . | . . . . . . Cargo Convoy Interrupts . | . . . . . . Stealth | -11 -10 -9 -9 -8 -7 --------- Run | Yrd Mat Mat Min Mat Fac Distress Signals 12 | . 2 3 . 2 5 Communications Jammed . | . . . . . . Distress Signals . | . . . . . . Times Spotted 222 | . 24 40 18 41 99 Peak Tracking Total 12 | . 4 5 4 7 12 Tactical Retreats 20 | . 2 3 . 5 10 Traps | -11 -10 -9 -9 -8 -7 ------- Run | Yrd Mat Mat Min Mat Fac Traps Triggered 2 | . . 1 . . 1 Indirectly . | . . . . . . Trap Hack Attempts . | . . . . . . Triggered . | . . . . . . Disarmed . | . . . . . . Reprogrammed . | . . . . . . Reused . | . . . . . . Traps Extracted . | . . . . . . Installed . | . . . . . . Triggered . | . . . . . . Machines | -11 -10 -9 -9 -8 -7 ---------- Run | Yrd Mat Mat Min Mat Fac Machines Disabled 17 | . . 4 1 5 7 Max in Single Turn 4 | . . 3 1 2 4 Garrison Access 2 | . . . . 1 1 Machines Repaired . | . . . . . . Machines Dismantled . | . . . . . . Machines Sabotaged . | . . . . . . Overloaded Fab Kills . | . . . . . . Hacking | -11 -10 -9 -9 -8 -7 --------- Run | Yrd Mat Mat Min Mat Fac Machines Accessed 38 | . 7 9 . 9 13 Terminals 28 | . 6 7 . 7 8 Fabricators 1 | . . . . . 1 Repair Stations . | . . . . . . Recycling Units 5 | . 1 2 . 1 1 Scanalyzers 1 | . . . . . 1 Garrison Access 3 | . . . . 1 2 Total Hacks 115 | . 23 28 . 35 29 Successful 47 | . 11 13 . 16 7 Failed 68 | . 12 15 . 19 22 Catastrophic 12 | . . 2 . 1 9 Database Lockouts . | . . . . . . Manual 66 | . 12 14 . 25 15 Terminals 91 | . 19 25 . 29 18 Fabricators 2 | . . . . . 2 Repair Stations . | . . . . . . Recycling Units 10 | . 4 3 . 2 1 Scanalyzers 4 | . . . . . 4 Garrison Access 8 | . . . . 4 4 Terminal Hacks 33 | . 10 10 . 11 2 Robot Analysis 3 | . 1 . . 2 . Prototype ID Bank 2 | . 1 1 . . . Terminal Index 1 | . 1 . . . . Alert Level 1 | . . . . 1 . Unreport Threat 2 | . . . . 1 1 Locate Traps 11 | . 2 4 . 4 1 Hauler Manifests 2 | . 1 1 . . . Registered Components 1 | . 1 . . . . Zone Layout 10 | . 3 4 . 3 . Fabricator Hacks 1 | . . . . . 1 Build 1 | . . . . . 1 Repair Station Hacks . | . . . . . . Recycling Unit Hacks 4 | . . 2 . 1 1 Report Inventory 3 | . . 2 . 1 . Retrieve Components 1 | . . . . . 1 Scanalyzer 2 | . . . . . 2 Insert Component 1 | . . . . . 1 Analyze 1 | . . . . . 1 Garrison Access Hacks 2 | . . . . 1 1 Seal Access 2 | . . . . 1 1 Unauthorized Hacks 5 | . 1 1 . 3 . Terminals 5 | . 1 1 . 3 . Botnet 5 | . 1 1 . 3 . Fabricators . | . . . . . . Repair Stations . | . . . . . . Recycling Units . | . . . . . . Scanalyzers . | . . . . . . Garrison Access . | . . . . . . Data Cores Recovered . | . . . . . . Used . | . . . . . . Hacking Detections 34 | . 7 7 . 8 12 Full Trace Events 11 | . 3 2 . 2 4 Feedback Events . | . . . . . . Feedback Blocked . | . . . . . . Robot Schematics Acquired . | . . . . . . Robots Built . | . . . . . . Authchips . | . . . . . . Time . | . . . . . . Total Robot Build Rating . | . . . . . . Part Schematics Acquired 1 | . . . . . 1 Parts Built 1 | . . . . . 1 Authchips . | . . . . . . Time 53 | . . . . . 53 Total Part Build Rating 6 | . . . . . 6 Parts Repaired . | . . . . . . Time . | . . . . . . Parts Recycled . | . . . . . . Recycled Matter . | . . . . . . Retrieved Matter . | . . . . . . Retrieved Components 10 | . . . . . 10 Parts Scanalyzed 1 | . . . . . 1 Part Schematics Acquired 1 | . . . . . 1 Parts Damaged . | . . . . . . Bothacking | -11 -10 -9 -9 -8 -7 ------------ Run | Yrd Mat Mat Min Mat Fac Used RIF Installer . | . . . . . . Robots Hacked . | . . . . . . Non-combat . | . . . . . . Combat . | . . . . . . Robot Hacks Applied . | . . . . . . Relay Couplers Released 4 | . . . . . 4 Programmers 4 | . . . . . 4 Fabnet Peak Effective % . | . . . . . . Robots Rewired 1 | . . . . . 1 Allies Hacked . | . . . . . . Hacks Repelled . | . . . . . . Allies | -11 -10 -9 -9 -8 -7 -------- Run | Yrd Mat Mat Min Mat Fac Total Allies 1 | . . . . . 1 Largest Group 1 | . . . . . 1 Highest-Rated Group 16 | . . . . . 16 Highest-Rated Ally 16 | . . . . . 16 Total Orders . | . . . . . . Ally Attacks 4 | . . . . . 4 Total Damage 64 | . . . . . 64 Kills . | . . . . . . Allies Corrupted . | . . . . . . Allies Melted . | . . . . . . Intel | -11 -10 -9 -9 -8 -7 ------- Run | Yrd Mat Mat Min Mat Fac Robot Analysis Total 3 | . 1 . . 2 . Derelict Logs Recovered 2 | . . . 2 . . Drone Launches . | . . . . . . Drone Recoveries . | . . . . . . Exploration | -11 -10 -9 -9 -8 -7 ------------- Run | Yrd Mat Mat Min Mat Fac Turns Passed 11163 | 120 1095 1687 3346 1836 3079 Spaces Moved 5490 | 56 463 915 1297 920 1839 Core 351 | 3 . . . 112 236 Treads 683 | 51 231 49 92 232 28 Legs . | . . . . . . Wheels 4456 | 2 232 866 1205 576 1575 Hover . | . . . . . . Flight . | . . . . . . Fastest Speed 50 | 50 110 110 125 50 50 Average Speed 126 | 151 161 128 133 128 108 Slowest Speed 242 | 160 240 240 240 242 240 Overloaded Moves . | . . . . . . Propulsion Burnouts . | . . . . . . Robots Hopped . | . . . . . . Cave-ins Triggered . | . . . . . . Exploration Rate (%) 62 | 4 93 64 101 67 43 Regions Visited 5 Branch Regions 1 Pre-discovered Areas 1 | . . . 1 . . Known Exits Taken 3 | . . 1 1 1 . Unknown Exits Taken 2 | 1 1 . . . . Scrap Searched 2 | . . . 2 . . Spaces Dug 22 | . 2 5 9 1 5 Terrain Destroyed 458 | . 2 80 87 48 241 Melee . | . . . . . . Projectile 44 | . 2 2 9 2 29 AOE 414 | . . 78 78 46 212 Terrain Rammed . | . . . . . . Walls Destroyed . | . . . . . . Machines Disabled . | . . . . . . Actions | -11 -10 -9 -9 -8 -7 --------- Run | Yrd Mat Mat Min Mat Fac Total 8882 | 75 718 1256 2795 1412 2626 Wait 2626 | . 186 190 1404 328 518 Move 5485 | 55 462 914 1296 919 1839 Hop . | . . . . . . Pick Up 68 | 6 10 17 5 12 18 Fast Attach 57 | 7 2 9 1 11 27 Attach 40 | . 3 7 4 16 10 Detach 8 | . 1 1 . 4 2 Swap 76 | . 4 6 15 21 30 Drop 68 | . 1 19 4 16 28 Fire 450 | 7 49 93 66 84 151 Melee . | . . . . . . Ram 3 | . . . . 1 2 Kick . | . . . . . . Crush . | . . . . . . Escape Stasis . | . . . . . . Rewire 1 | . . . . . 1 Trap . | . . . . . . Miscellaneous . | . . . . . . Route ------- -11/Scrapyard -10/Materials (discovered 5 exits: *Mat x3 / [*Min x2]) -9/Materials (discovered 5 exits: *Mat x2 / *Min / *Sto x2) -9/Mines (discovered 2 exits: *Mat x2) -8/Materials (discovered 3 exits: *Fac x3) -7/Factory (discovered 1 exit: [*Low]) History --------- Turn | Location | Event 25 | -11/Scrapyard | Discovered new exit (range 16) 121 | -11/Scrapyard | Entered Materials 332 | -10/Materials | Build established: Mutant 566 | -10/Materials | Discovered new exit (range 13) 767 | -10/Materials | Discovered new exit (range 7) 1005 | -10/Materials | Discovered new exit (range 9) 1113 | -10/Materials | Discovered new exit (range 16) 1185 | -10/Materials | Discovered new exit (range 3) 1216 | -10/Materials | Entered another Materials area 1216 | -9/Materials | Evolved 2 slots: Propulsion x1, Utility x1 1447 | -9/Materials | Discovered new exit (range 14) 1679 | -9/Materials | Discovered new exit (range 15) 1769 | -9/Materials | Discovered new exit (range 10) 2048 | -9/Materials | Discovered new exit (range 18) 2562 | -9/Materials | Identified exit to Materials 2591 | -9/Materials | Build established: Scavenger-Mutant 2644 | -9/Materials | Identified exit to Storage 2863 | -9/Materials | Discovered new exit (range 14) 2901 | -9/Materials | Identified exit to Mines 2903 | -9/Materials | Entered Mines 2910 | -9/Mines | Core integrity fell below 50% 2951 | -9/Mines | Learned location of 1 exit from Materials 3510 | -9/Mines | Discovered exit to Materials (range 6) 3536 | -9/Mines | Discovered exit to Materials (range 12) 3786 | -9/Mines | Learned location of Storage (-9) 6249 | -9/Mines | Entered Materials 6249 | -8/Materials | Evolved 2 slots: Propulsion x1, Utility x1 6250 | -8/Materials | Identified exit to Factory 6542 | -8/Materials | Build established: Scavenger-Skirmisher 6876 | -8/Materials | Discovered exit to Factory (range 8) 7167 | -8/Materials | Build established: Scavenger-Mutant 7846 | -8/Materials | Build established: Skirmisher 7996 | -8/Materials | Discovered exit to Factory (range 8) 8012 | -8/Materials | Core integrity fell below 50% 8026 | -8/Materials | Core integrity fell below 20% 8062 | -8/Materials | Lost 7 parts (1p3u3w) 8085 | -8/Materials | Entered Factory 8085 | -7/Factory | Evolved 2 slots: Utility x1, Weapon x1 8513 | -7/Factory | Build established: Scavenger-Mutant 9418 | -7/Factory | Build established: Gunner 9815 | -7/Factory | Discovered new exit (range 12) 10169 | -7/Factory | Fabricated Adv. Drone Bay? 10485 | -7/Factory | First assault squad dispatched 10608 | -7/Factory | Destroyed 11 combat bots 10870 | -7/Factory | Garrison activated, responded to threat 10900 | -7/Factory | Destroyed 10 combat bots 11020 | -7/Factory | System corruption reached 10% 11076 | -7/Factory | Lost 6 parts (1n3u2w) 11087 | -7/Factory | Core integrity fell below 50% 11114 | -7/Factory | Core integrity fell below 20% 11119 | -7/Factory | Lost 5 parts (3n2w) 11164 | -7/Factory | Destroyed by S-27 Virus with Autogun Last Messages --------------- 11082_ Gauss Cannon destroyed. 11086_ Lgt. Treads destroyed. 11086_ System corrupted by crushing effect (+5). 11086_ Hvy. Rocket Launcher destroyed. 11087_ Dropped Huge Storage Unit. 11088_ Dropped Med. Storage Unit. 11088_ Dropped Rnf. Deuterium Engine. 11088_ Lgt. Treads destroyed. 11088_ Critical hit (Burn: +37). 11088_ Arm. Huge Wheel destroyed. 11097_ Nuclear Reactor explodes. 11097_ Subcomponent Replicator disabled. 11097_ L-41 Fighter destroyed. 11097_ B-48 Gladiator destroyed. 11098_ 5A|N69 MI8JAHGOCMH4X|MIM 11132_ The unstable cave ceiling collapses. 11138_ Slammed into T-07 Excavator. 11146_ Critical hit (Burn: +37). 11159_ Slammed into R-06 Scavenger. 11161_ 4:NKI/E IBPIJ6YI9E JX,02XFI Map ----- +----------------------------------------------------+ | ???????########+###### # #????????????????? | | ??????????????# #????????????????? | | ??????????????# #????????????????? | | ??????????????# #%% #????????????????? | | ??????????????# #????????????????? | | ????????????###"###+## ## #????????????????? | | ??#####????## #????????????????? | | ??? ????#" ^ *% #????????????????? | | ???[[ ????#" ^ % ######????????????????? | | ???[ ????#"!! # ?????????????????????? | | ???? ###?#T!! ""%% # "????????????????????? | | ?#+## ###"!! """ ???????????????????? | | ?# # #" " g ""???????????????????? | | ## # ##" g # ??????????????????? | | ## ## ## # """"?????????????????? | | ## + # % %#?? ?????????????????? | | ## # # ##### # #??????????????????????? | | ## # # # #??? # ##?????????????????????? | | # *### ##### # ???????????????######## | | + [ # %#? ?#r ss#?????????????? | | %# ##### ######/##s######????????? | | #### r/ %% k #????????? | | #### ## ## # ????? | | #### ## ## + ????? | | ####+#### #??????????######## | | #? ?# @ #?????????????????? | | ######## ## ## ! #?????????????????? | | ## ## ################?????????????????? | | # # #????????????????????????????????? | | """ + # #???????????????????????????? ???? | | """ # # #????????????????????????????????? | | """ ## ## #????????????????????????????????? | | [## ## #????????????????????????????????? | | ##+##### ## #????????????????????????????????? | | #?# ## #????????????????????????????????? | | T" ### ## #????????????????????????????????? | | " / ?????????????????????????????????? | | ###+#######?????????????????????????????????? | | # #?????????????????????????????????? | | ## ### ! #????????????????????????????????#? | | ?# #?# = #?????????????????????????????????? | | ?# #?# ! #?????????????????????????????????? | | ?# #?##+############?????????????????????????????? | | ## ### # #????????????????????????????## | | + #?????????????????????????????? | | ##+### # ""T"" #?????????????????????????????? | | # ### ## """"" #??????????????????????????? ?? | | # #?# ############?????????????????????????????? | | # #?# ##????????????????????????????????????? ?? | | # #?# ##???????????????????????????????????? ??? | +----------------------------------------------------+ Best States ------------- Heat Dissipation 62 Energy Generation 16 Energy Capacity 290 Matter Stores 300 Matter Capacity 300 Sight Range 18 Robot Scan Range 15 Terrain Scan Range 16 Terrain Scan Density 10 Armor Coverage 450 Evasion (%) 50 Targeting Accuracy 8 Recoil Reduction 4 Offensive Hacking 20 Item Schematics ----------------- Hvy. Deuterium Engine | -7/Factory | Scanalyzed Robot Schematics ------------------ None Fabricated ------------ Adv. Drone Bay | x1 | -7/Factory | Preloaded Alien Tech Used ----------------- None Achievements -------------- Armchair Analyst Challenges ------------ None Game ------ Seed MobileTeslaStreamer Manual? 0 Play Time 01:55:25 Cumulative 73.6 hours Start 2024.08.21 @ 06:45:27 End 2024.08.21 @ 17:35:37 Sessions 3 Manual Loads 0 Difficulty Rogue Special Mode None Game No. 62 Rogue 41 Adventurer 21 Explorer 0 Win Type - Total 1 Types 1/0/0/0/0/0/0/0/0 Lore% 16 Gallery% 47 Achievement% 40 Wizard Run 0 Options --------- Layout 1 ASCII 0 Keyboard 0 Movement Mouse Keybinds 0 Fullscreen 2 Font 32/SmallcapsGlow Map View 77x35 Zoom Use 0% Tactical HUD 1 Map Filters NONE Filters NONE Steam 1 RUN: b01be6eb-05f9-4531-9659-a425347fdef9